[Event "Titled Tuesday Blitz April 4 Late 2023"]
[White "Vaglio Munoz, Jaime"]
[Black "Georg, Heinz"]
[WhiteFideId "6500145"]
[BlackFideId "4607295"]
[WhiteElo "2199"]
[BlackElo "2244"]
[Result "0-1"]
[Round "08"]
[TimeControl "180+2"]
[Date "2023.04.04"]
[WhiteClock "0:00:32"]
[BlackClock "0:00:10"]

1. Nf3 {[%clk 0:03:00]}  f5 {[%clk 0:02:59]} 2. h3 {[%clk 0:02:57]}  Nf6 {[%clk 0:02:59]} 3. g4 {[%clk 0:02:58]}  d5 {[%clk 0:02:59]} 4. g5 {[%clk 0:02:57]}  Ne4 {[%clk 0:02:58]} 5. d3 {[%clk 0:02:57]}  Nd6 {[%clk 0:02:57]} 6. g6 {[%clk 0:02:57]}  hxg6 {[%clk 0:02:55]} 7. Ne5 {[%clk 0:02:56]}  Nf7 {[%clk 0:02:51]} 8. Nxg6 {[%clk 0:02:54]}  Rh7 {[%clk 0:02:46]} 9. d4 {[%clk 0:02:46]}  Qd6 {[%clk 0:02:43]} 10. Rg1 {[%clk 0:02:44]}  e5 {[%clk 0:02:34]} 11. dxe5 {[%clk 0:02:37]}  Nxe5 {[%clk 0:02:34]} 12. Bf4 {[%clk 0:02:35]}  Nbc6 {[%clk 0:02:34]} 13. Nc3 {[%clk 0:02:32]}  Be6 {[%clk 0:02:33]} 14. e3 {[%clk 0:02:05]}  O-O-O {[%clk 0:02:29]} 15. Nxe5 {[%clk 0:02:04]}  Nxe5 {[%clk 0:02:29]} 16. Nb5 {[%clk 0:02:03]}  Qb4+ {[%clk 0:02:27]} 17. c3 {[%clk 0:02:03]}  Qe4 {[%clk 0:02:11]} 18. Nd4 {[%clk 0:01:52]}  Bf7 {[%clk 0:01:13]} 19. f3 {[%clk 0:01:51]}  Nxf3+ {[%clk 0:01:09]} 20. Qxf3 {[%clk 0:01:49]}  Qe8 {[%clk 0:01:05]} 21. Bd3 {[%clk 0:01:42]}  Bh5 {[%clk 0:01:04]} 22. Bxf5+ {[%clk 0:01:39]}  Kb8 {[%clk 0:01:04]} 23. Bg4 {[%clk 0:01:33]}  Bxg4 {[%clk 0:00:59]} 24. Rxg4 {[%clk 0:01:32]}  Bc5 {[%clk 0:00:52]} 25. O-O-O {[%clk 0:01:30]}  Qa4 {[%clk 0:00:48]} 26. Kb1 {[%clk 0:01:28]}  Rxh3 {[%clk 0:00:42]} 27. Qe2 {[%clk 0:01:07]}  Bxd4 {[%clk 0:00:37]} 28. exd4 {[%clk 0:01:05]}  Re8 {[%clk 0:00:33]} 29. Be5 {[%clk 0:00:53]}  Rh2 {[%clk 0:00:24]} 30. Qd3 {[%clk 0:00:35]}  Rxe5 {[%clk 0:00:17]} 31. Rxg7 {[%clk 0:00:34]}  Re8 {[%clk 0:00:12]} 32. b3 {[%clk 0:00:33]}  Qxa2+ {[%clk 0:00:10]} 33. Kc1 {[%clk 0:00:32]}  Qb2# {[%clk 0:00:10]} 0-1


[Site "https://www.chess.com"]

[Event "Titled Tuesday Blitz April 4 Late 2023"]
[White "Mazurkiewicz, Michal"]
[Black "Chabris, Christopher"]
[WhiteFideId "1124943"]
[BlackFideId "2005263"]
[WhiteElo "2054"]
[BlackElo "2220"]
[Result "1-0"]
[Round "08"]
[TimeControl "180+2"]
[Date "2023.04.04"]
[WhiteClock "0:00:09"]
[BlackClock "0:00:01"]

1. e4 {[%clk 0:02:59]}  c5 {[%clk 0:02:58]} 2. Nf3 {[%clk 0:02:59]}  Nc6 {[%clk 0:02:59]} 3. g3 {[%clk 0:02:58]}  g6 {[%clk 0:02:57]} 4. Bg2 {[%clk 0:02:58]}  Bg7 {[%clk 0:02:57]} 5. O-O {[%clk 0:02:58]}  d6 {[%clk 0:02:53]} 6. d3 {[%clk 0:02:57]}  Rb8 {[%clk 0:02:52]} 7. a4 {[%clk 0:02:57]}  a6 {[%clk 0:02:51]} 8. Re1 {[%clk 0:02:55]}  e6 {[%clk 0:02:47]} 9. c3 {[%clk 0:02:53]}  Nge7 {[%clk 0:02:41]} 10. d4 {[%clk 0:02:53]}  cxd4 {[%clk 0:02:27]} 11. cxd4 {[%clk 0:02:54]}  d5 {[%clk 0:02:26]} 12. e5 {[%clk 0:02:30]}  h6 {[%clk 0:02:26]} 13. h4 {[%clk 0:02:28]}  b5 {[%clk 0:02:15]} 14. axb5 {[%clk 0:02:26]}  axb5 {[%clk 0:02:16]} 15. Nc3 {[%clk 0:02:27]}  b4 {[%clk 0:02:15]} 16. Na4 {[%clk 0:02:26]}  Qa5 {[%clk 0:01:59]} 17. Bf4 {[%clk 0:02:04]}  O-O {[%clk 0:01:51]} 18. Nc5 {[%clk 0:02:00]}  Qb6 {[%clk 0:01:44]} 19. Qd2 {[%clk 0:01:58]}  Kh7 {[%clk 0:01:43]} 20. Bf1 {[%clk 0:01:25]}  b3 {[%clk 0:01:34]} 21. Bd3 {[%clk 0:01:14]}  Nb4 {[%clk 0:01:28]} 22. Bb1 {[%clk 0:01:11]}  Na6 {[%clk 0:01:16]} 23. Nxa6 {[%clk 0:00:49]}  Bxa6 {[%clk 0:01:16]} 24. h5 {[%clk 0:00:49]}  Bc4 {[%clk 0:01:06]} 25. Be3 {[%clk 0:00:42]}  Qb4 {[%clk 0:00:59]} 26. Qxb4 {[%clk 0:00:41]}  Rxb4 {[%clk 0:00:59]} 27. Ra7 {[%clk 0:00:40]}  Nc6 {[%clk 0:00:51]} 28. Rc7 {[%clk 0:00:36]}  Na5 {[%clk 0:00:46]} 29. hxg6+ {[%clk 0:00:32]}  fxg6 {[%clk 0:00:46]} 30. Nh4 {[%clk 0:00:33]}  Rf5 {[%clk 0:00:33]} 31. g4 {[%clk 0:00:25]}  Rg5 {[%clk 0:00:20]} 32. Bxg5 {[%clk 0:00:25]}  hxg5 {[%clk 0:00:20]} 33. Nxg6 {[%clk 0:00:25]}  Kh6 {[%clk 0:00:19]} 34. Re7 {[%clk 0:00:25]}  Rb6 {[%clk 0:00:17]} 35. f4 {[%clk 0:00:25]}  Bb5 {[%clk 0:00:14]} 36. f5 {[%clk 0:00:25]}  exf5 {[%clk 0:00:13]} 37. gxf5 {[%clk 0:00:26]}  Nc4 {[%clk 0:00:12]} 38. f6 {[%clk 0:00:26]}  Bxf6 {[%clk 0:00:11]} 39. exf6 {[%clk 0:00:25]}  Rxf6 {[%clk 0:00:11]} 40. R7e6 {[%clk 0:00:25]}  Rxe6 {[%clk 0:00:08]} 41. Rxe6 {[%clk 0:00:25]}  Nd2 {[%clk 0:00:08]} 42. Bf5 {[%clk 0:00:21]}  Nf3+ {[%clk 0:00:06]} 43. Kf2 {[%clk 0:00:17]}  Nxd4 {[%clk 0:00:06]} 44. Rb6 {[%clk 0:00:09]}  Nxf5 {[%clk 0:00:06]} 45. Ne7+ {[%clk 0:00:09]}  Kh5 {[%clk 0:00:04]} 46. Nxf5 {[%clk 0:00:09]}  Bc4 {[%clk 0:00:04]} 47. Ng3+ {[%clk 0:00:09]}  Kg4 {[%clk 0:00:04]} 48. Ne2 {[%clk 0:00:09]}  Kf5 {[%clk 0:00:02]} 49. Ke3 {[%clk 0:00:08]}  g4 {[%clk 0:00:01]} 50. Nd4+ {[%clk 0:00:08]}  Ke5 {[%clk 0:00:01]} 51. Re6# {[%clk 0:00:09]} 1-0


[Site "https://www.chess.com"]

[Event "Titled Tuesday Blitz April 4 Late 2023"]
[White "Svicevic, Rastko"]
[Black "Pein, Jonathan"]
[WhiteFideId "916315"]
[BlackFideId "417092"]
[WhiteElo "2071"]
[BlackElo "2151"]
[Result "0-1"]
[Round "08"]
[TimeControl "180+2"]
[Date "2023.04.04"]
[WhiteClock "0:00:06"]
[BlackClock "0:00:07"]

1. d4 {[%clk 0:03:00]}  d6 {[%clk 0:02:54]} 2. e4 {[%clk 0:02:59]}  Nf6 {[%clk 0:02:54]} 3. Nc3 {[%clk 0:02:58]}  e5 {[%clk 0:02:55]} 4. Nf3 {[%clk 0:02:57]}  exd4 {[%clk 0:02:55]} 5. Nxd4 {[%clk 0:02:57]}  g6 {[%clk 0:02:56]} 6. h3 {[%clk 0:02:54]}  Bg7 {[%clk 0:02:57]} 7. Be3 {[%clk 0:02:54]}  O-O {[%clk 0:02:57]} 8. Be2 {[%clk 0:02:51]}  Re8 {[%clk 0:02:57]} 9. Bf3 {[%clk 0:02:48]}  Nbd7 {[%clk 0:02:58]} 10. O-O {[%clk 0:02:39]}  Nc5 {[%clk 0:02:50]} 11. Bg5 {[%clk 0:02:37]}  h6 {[%clk 0:02:49]} 12. Bxf6 {[%clk 0:02:32]}  Qxf6 {[%clk 0:02:50]} 13. Ndb5 {[%clk 0:02:21]}  Qd8 {[%clk 0:02:50]} 14. Qd2 {[%clk 0:01:59]}  Bd7 {[%clk 0:02:34]} 15. Nd4 {[%clk 0:01:55]}  a6 {[%clk 0:02:28]} 16. Rad1 {[%clk 0:01:51]}  Ne6 {[%clk 0:02:19]} 17. Nce2 {[%clk 0:01:48]}  Ng5 {[%clk 0:02:13]} 18. Qd3 {[%clk 0:01:25]}  c5 {[%clk 0:02:02]} 19. h4 {[%clk 0:01:19]}  Nxf3+ {[%clk 0:01:32]} 20. Nxf3 {[%clk 0:01:19]}  Bb5 {[%clk 0:01:32]} 21. c4 {[%clk 0:01:16]}  Bc6 {[%clk 0:01:31]} 22. Ng3 {[%clk 0:01:03]}  Bxb2 {[%clk 0:01:21]} 23. Qxd6 {[%clk 0:00:44]}  Qxd6 {[%clk 0:01:10]} 24. Rxd6 {[%clk 0:00:45]}  Bxe4 {[%clk 0:00:36]} 25. Rb6 {[%clk 0:00:45]}  Bxf3 {[%clk 0:00:20]} 26. gxf3 {[%clk 0:00:44]}  Bd4 {[%clk 0:00:18]} 27. Rxb7 {[%clk 0:00:42]}  Rab8 {[%clk 0:00:19]} 28. Rfb1 {[%clk 0:00:38]}  Rxb7 {[%clk 0:00:17]} 29. Rxb7 {[%clk 0:00:39]}  Re1+ {[%clk 0:00:17]} 30. Kg2 {[%clk 0:00:38]}  Ra1 {[%clk 0:00:18]} 31. Ne4 {[%clk 0:00:21]}  Rxa2 {[%clk 0:00:17]} 32. Rc7 {[%clk 0:00:22]}  a5 {[%clk 0:00:16]} 33. Nxc5 {[%clk 0:00:21]}  Rxf2+ {[%clk 0:00:15]} 34. Kg3 {[%clk 0:00:20]}  Rc2 {[%clk 0:00:08]} 35. Nb3 {[%clk 0:00:06]}  Be5+ {[%clk 0:00:07]} 0-1


[Site "https://www.chess.com"]

[Event "Titled Tuesday Blitz April 4 Late 2023"]
[White "Srdanovic, Jovana"]
[Black "Pirvulescu, Ekaterina"]
[WhiteFideId "954810"]
[BlackFideId "13506374"]
[WhiteElo "2145"]
[BlackElo "2006"]
[Result "0-1"]
[Round "08"]
[TimeControl "180+2"]
[Date "2023.04.04"]
[WhiteClock "0:01:30"]
[BlackClock "0:02:25"]

1. d4 {[%clk 0:03:00]}  d6 {[%clk 0:02:59]} 2. c4 {[%clk 0:03:01]}  e5 {[%clk 0:02:57]} 3. d5 {[%clk 0:02:59]}  f5 {[%clk 0:02:56]} 4. e4 {[%clk 0:02:56]}  Nf6 {[%clk 0:02:55]} 5. Nc3 {[%clk 0:02:53]}  Be7 {[%clk 0:02:52]} 6. Bd3 {[%clk 0:02:47]}  fxe4 {[%clk 0:02:47]} 7. Nxe4 {[%clk 0:02:46]}  O-O {[%clk 0:02:46]} 8. Qc2 {[%clk 0:02:45]}  h6 {[%clk 0:02:41]} 9. h3 {[%clk 0:02:19]}  a5 {[%clk 0:02:37]} 10. Nf3 {[%clk 0:02:17]}  Na6 {[%clk 0:02:38]} 11. Be3 {[%clk 0:02:14]}  Nb4 {[%clk 0:02:38]} 12. Qd2 {[%clk 0:02:14]}  Nxd3+ {[%clk 0:02:37]} 13. Qxd3 {[%clk 0:02:11]}  Nxe4 {[%clk 0:02:38]} 14. O-O-O {[%clk 0:01:51]}  Bf5 {[%clk 0:02:35]} 15. g4 {[%clk 0:01:49]}  Nxf2 {[%clk 0:02:29]} 16. Qe2 {[%clk 0:01:38]}  Nxd1 {[%clk 0:02:26]} 17. gxf5 {[%clk 0:01:30]}  Nxe3 {[%clk 0:02:26]} 18. Qxe3 {[%clk 0:01:30]}  Bg5 {[%clk 0:02:25]} 19. Nxg5 {[%clk 0:01:30]}  Qxg5 {[%clk 0:02:25]} 0-1


[Site "https://www.chess.com"]

[Event "Titled Tuesday Blitz April 4 Late 2023"]
[White "Briscoe, Chris"]
[Black "Winkels, Marcel"]
[WhiteFideId "408360"]
[BlackFideId "1003887"]
[WhiteElo "2111"]
[BlackElo "1900"]
[Result "0-1"]
[Round "08"]
[TimeControl "180+2"]
[Date "2023.04.04"]
[WhiteClock "0:01:37"]
[BlackClock "0:00:52"]

1. h4 {[%clk 0:02:54]}  Nf6 {[%clk 0:02:56]} 2. Rh3 {[%clk 0:02:53]}  d5 {[%clk 0:02:55]} 3. Rg3 {[%clk 0:02:50]}  c5 {[%clk 0:02:52]} 4. d4 {[%clk 0:02:48]}  Nc6 {[%clk 0:02:50]} 5. dxc5 {[%clk 0:02:43]}  e5 {[%clk 0:02:48]} 6. Bg5 {[%clk 0:02:39]}  h6 {[%clk 0:02:46]} 7. Bxf6 {[%clk 0:02:39]}  gxf6 {[%clk 0:02:46]} 8. Rd3 {[%clk 0:02:35]}  Be6 {[%clk 0:02:33]} 9. Nc3 {[%clk 0:02:28]}  d4 {[%clk 0:02:30]} 10. Ne4 {[%clk 0:02:28]}  f5 {[%clk 0:02:26]} 11. Nd6+ {[%clk 0:02:28]}  Bxd6 {[%clk 0:02:25]} 12. cxd6 {[%clk 0:02:29]}  Qxd6 {[%clk 0:02:25]} 13. Nf3 {[%clk 0:02:28]}  e4 {[%clk 0:02:19]} 14. Rxd4 {[%clk 0:02:28]}  Nxd4 {[%clk 0:02:18]} 15. Nxd4 {[%clk 0:02:28]}  O-O-O {[%clk 0:02:13]} 16. e3 {[%clk 0:02:27]}  f4 {[%clk 0:02:05]} 17. Qd2 {[%clk 0:02:18]}  fxe3 {[%clk 0:02:03]} 18. fxe3 {[%clk 0:02:19]}  Qg3+ {[%clk 0:02:03]} 19. Qf2 {[%clk 0:02:19]}  Qxf2+ {[%clk 0:02:01]} 20. Kxf2 {[%clk 0:02:19]}  Rhg8 {[%clk 0:01:55]} 21. g3 {[%clk 0:02:17]}  Kb8 {[%clk 0:01:48]} 22. Bg2 {[%clk 0:02:16]}  Bd5 {[%clk 0:01:34]} 23. b3 {[%clk 0:02:15]}  b6 {[%clk 0:01:30]} 24. c4 {[%clk 0:02:13]}  Bb7 {[%clk 0:01:28]} 25. a4 {[%clk 0:02:13]}  Rd6 {[%clk 0:01:23]} 26. a5 {[%clk 0:02:12]}  Rf6+ {[%clk 0:01:22]} 27. Kg1 {[%clk 0:02:04]}  Rxg3 {[%clk 0:01:21]} 28. Kh2 {[%clk 0:02:03]}  Rg4 {[%clk 0:01:15]} 29. a6 {[%clk 0:01:59]}  Ba8 {[%clk 0:01:11]} 30. Nb5 {[%clk 0:01:54]}  Rf2 {[%clk 0:01:04]} 31. Rd1 {[%clk 0:01:50]}  Rgxg2+ {[%clk 0:00:58]} 32. Kh3 {[%clk 0:01:44]}  Rg8 {[%clk 0:00:55]} 33. Rd7 {[%clk 0:01:42]}  Bc6 {[%clk 0:00:53]} 34. Re7 {[%clk 0:01:37]}  Bxb5 {[%clk 0:00:52]} 0-1


[Site "https://www.chess.com"]

[Event "Titled Tuesday Blitz April 4 Late 2023"]
[White "Maghsoodloo, Parham"]
[Black "Fedoseev, Vladimir"]
[WhiteFideId "12539929"]
[BlackFideId "24130737"]
[WhiteElo "2647"]
[BlackElo "2752"]
[Result "0-1"]
[Round "09"]
[TimeControl "180+2"]
[Date "2023.04.04"]
[WhiteClock "0:00:01"]
[BlackClock "0:00:14"]

1. d4 {[%clk 0:03:00]}  g6 {[%clk 0:02:58]} 2. e4 {[%clk 0:03:00]}  Bg7 {[%clk 0:02:56]} 3. Nc3 {[%clk 0:03:00]}  c6 {[%clk 0:02:55]} 4. Nf3 {[%clk 0:02:51]}  d5 {[%clk 0:02:50]} 5. h3 {[%clk 0:02:51]}  a6 {[%clk 0:02:38]} 6. a4 {[%clk 0:02:28]}  dxe4 {[%clk 0:02:35]} 7. Nxe4 {[%clk 0:02:28]}  Bf5 {[%clk 0:02:35]} 8. Bd3 {[%clk 0:02:21]}  Bxd4 {[%clk 0:02:22]} 9. Nxd4 {[%clk 0:02:21]}  Qxd4 {[%clk 0:02:21]} 10. Qe2 {[%clk 0:02:20]}  Bxe4 {[%clk 0:02:17]} 11. Bxe4 {[%clk 0:02:19]}  Nf6 {[%clk 0:02:17]} 12. Bf3 {[%clk 0:02:17]}  Nbd7 {[%clk 0:02:17]} 13. O-O {[%clk 0:02:13]}  Ne5 {[%clk 0:02:10]} 14. Re1 {[%clk 0:02:13]}  Nxf3+ {[%clk 0:02:08]} 15. Qxf3 {[%clk 0:02:13]}  Nd5 {[%clk 0:01:59]} 16. Re4 {[%clk 0:01:35]}  Qf6 {[%clk 0:01:56]} 17. Qe2 {[%clk 0:01:23]}  e6 {[%clk 0:01:53]} 18. c4 {[%clk 0:01:22]}  Ne7 {[%clk 0:01:36]} 19. h4 {[%clk 0:00:58]}  h6 {[%clk 0:01:24]} 20. Bf4 {[%clk 0:00:58]}  Qg7 {[%clk 0:00:53]} 21. Be5 {[%clk 0:00:30]}  f6 {[%clk 0:00:52]} 22. Bxf6 {[%clk 0:00:31]}  Qxf6 {[%clk 0:00:51]} 23. Rxe6 {[%clk 0:00:32]}  Qxh4 {[%clk 0:00:35]} 24. Re1 {[%clk 0:00:26]}  Rh7 {[%clk 0:00:32]} 25. Qd3 {[%clk 0:00:06]}  Kf8 {[%clk 0:00:31]} 26. Qd6 {[%clk 0:00:03]}  Re8 {[%clk 0:00:26]} 27. g3 {[%clk 0:00:01]}  Qg4 {[%clk 0:00:14]} 28. R1e4 {[%clk 0:00:01]}  Qh3 {[%clk 0:00:14]} 0-1


[Site "https://www.chess.com"]

[Event "Titled Tuesday Blitz April 4 Late 2023"]
[White "Sargsyan, Shant"]
[Black "Indjic, Aleksandar"]
[WhiteFideId "13306766"]
[BlackFideId "911925"]
[WhiteElo "2628"]
[BlackElo "2614"]
[Result "1/2-1/2"]
[Round "09"]
[TimeControl "180+2"]
[Date "2023.04.04"]
[WhiteClock "0:00:59"]
[BlackClock "0:01:06"]

1. Nf3 {[%clk 0:03:00]}  Nf6 {[%clk 0:02:59]} 2. c4 {[%clk 0:03:00]}  e6 {[%clk 0:02:59]} 3. d4 {[%clk 0:03:00]}  c5 {[%clk 0:02:58]} 4. g3 {[%clk 0:02:59]}  cxd4 {[%clk 0:02:58]} 5. Nxd4 {[%clk 0:03:00]}  Qc7 {[%clk 0:02:55]} 6. Nc3 {[%clk 0:02:59]}  a6 {[%clk 0:02:56]} 7. Bg2 {[%clk 0:02:59]}  Qxc4 {[%clk 0:02:56]} 8. Bf4 {[%clk 0:02:58]}  Nc6 {[%clk 0:02:49]} 9. Nb3 {[%clk 0:02:58]}  d5 {[%clk 0:02:21]} 10. Rc1 {[%clk 0:02:58]}  Qb4 {[%clk 0:02:21]} 11. O-O {[%clk 0:02:58]}  Be7 {[%clk 0:02:09]} 12. Bc7 {[%clk 0:02:48]}  Qg4 {[%clk 0:02:05]} 13. e4 {[%clk 0:02:44]}  Qxd1 {[%clk 0:02:01]} 14. Rfxd1 {[%clk 0:02:45]}  Nxe4 {[%clk 0:01:58]} 15. Nxe4 {[%clk 0:02:46]}  dxe4 {[%clk 0:01:58]} 16. Bxe4 {[%clk 0:02:47]}  Bd7 {[%clk 0:01:58]} 17. Bb6 {[%clk 0:02:36]}  Rc8 {[%clk 0:01:53]} 18. Rc2 {[%clk 0:02:14]}  Bd8 {[%clk 0:01:46]} 19. Bxd8 {[%clk 0:01:54]}  Nxd8 {[%clk 0:01:42]} 20. Rcd2 {[%clk 0:01:54]}  Bc6 {[%clk 0:01:36]} 21. Bxc6+ {[%clk 0:01:41]}  Nxc6 {[%clk 0:01:35]} 22. Nc5 {[%clk 0:01:42]}  Rc7 {[%clk 0:01:13]} 23. Rd7 {[%clk 0:01:21]}  Rxd7 {[%clk 0:01:13]} 24. Rxd7 {[%clk 0:01:21]}  b6 {[%clk 0:01:12]} 25. Rc7 {[%clk 0:01:22]}  bxc5 {[%clk 0:01:09]} 26. Rxc6 {[%clk 0:01:22]}  Kd7 {[%clk 0:01:10]} 27. Rxc5 {[%clk 0:01:23]}  Rb8 {[%clk 0:01:10]} 28. b3 {[%clk 0:01:23]}  Kd6 {[%clk 0:01:07]} 29. Ra5 {[%clk 0:01:23]}  Rb6 {[%clk 0:01:06]} 30. Kg2 {[%clk 0:01:21]}  Rc6 {[%clk 0:01:06]} 31. h4 {[%clk 0:00:59]}  Kc7 {[%clk 0:01:06]} 1/2-1/2


[Site "https://www.chess.com"]

[Event "Titled Tuesday Blitz April 4 Late 2023"]
[White "Naroditsky, Daniel"]
[Black "Alekseenko, Kirill"]
[WhiteFideId "2026961"]
[BlackFideId "4135539"]
[WhiteElo "2633"]
[BlackElo "2683"]
[Result "0-1"]
[Round "09"]
[TimeControl "180+2"]
[Date "2023.04.04"]
[WhiteClock "0:00:03"]
[BlackClock "0:00:11"]

1. d4 {[%clk 0:03:00]}  d5 {[%clk 0:03:00]} 2. Nc3 {[%clk 0:03:01]}  Nf6 {[%clk 0:02:59]} 3. Bf4 {[%clk 0:03:02]}  e6 {[%clk 0:02:57]} 4. Nb5 {[%clk 0:03:00]}  Na6 {[%clk 0:02:56]} 5. e3 {[%clk 0:03:00]}  Be7 {[%clk 0:02:55]} 6. Nf3 {[%clk 0:03:00]}  O-O {[%clk 0:02:47]} 7. h4 {[%clk 0:03:00]}  Ne4 {[%clk 0:02:40]} 8. Nd2 {[%clk 0:02:45]}  Nf6 {[%clk 0:02:05]} 9. h5 {[%clk 0:02:40]}  h6 {[%clk 0:01:57]} 10. a3 {[%clk 0:02:16]}  c6 {[%clk 0:01:51]} 11. Nc3 {[%clk 0:02:17]}  Bd6 {[%clk 0:01:33]} 12. Bxd6 {[%clk 0:02:07]}  Qxd6 {[%clk 0:01:33]} 13. Bxa6 {[%clk 0:01:51]}  bxa6 {[%clk 0:01:34]} 14. Nf3 {[%clk 0:01:52]}  a5 {[%clk 0:01:26]} 15. Na4 {[%clk 0:01:47]}  Ne4 {[%clk 0:01:26]} 16. Nd2 {[%clk 0:01:44]}  f5 {[%clk 0:01:17]} 17. Nxe4 {[%clk 0:01:38]}  fxe4 {[%clk 0:01:18]} 18. Qd2 {[%clk 0:01:23]}  e5 {[%clk 0:01:18]} 19. O-O-O {[%clk 0:01:05]}  exd4 {[%clk 0:01:17]} 20. exd4 {[%clk 0:01:04]}  Bg4 {[%clk 0:01:15]} 21. Rde1 {[%clk 0:00:59]}  Qf6 {[%clk 0:01:04]} 22. f3 {[%clk 0:00:55]}  exf3 {[%clk 0:01:02]} 23. gxf3 {[%clk 0:00:56]}  Bxf3 {[%clk 0:01:03]} 24. Rhg1 {[%clk 0:00:41]}  Bxh5 {[%clk 0:00:58]} 25. Nc5 {[%clk 0:00:42]}  Rf7 {[%clk 0:00:30]} 26. Re6 {[%clk 0:00:33]}  Qf5 {[%clk 0:00:30]} 27. b3 {[%clk 0:00:22]}  Kh7 {[%clk 0:00:30]} 28. Kb2 {[%clk 0:00:19]}  a4 {[%clk 0:00:31]} 29. b4 {[%clk 0:00:13]}  a5 {[%clk 0:00:31]} 30. bxa5 {[%clk 0:00:13]}  Rb8+ {[%clk 0:00:31]} 31. Ka2 {[%clk 0:00:13]}  Qf2 {[%clk 0:00:22]} 32. Qc1 {[%clk 0:00:03]}  Be2 {[%clk 0:00:20]} 33. Ka1 {[%clk 0:00:01]}  Qxd4+ {[%clk 0:00:19]} 34. c3 {[%clk 0:00:01]}  Qxc5 {[%clk 0:00:15]} 35. Rh1 {[%clk 0:00:02]}  h5 {[%clk 0:00:08]} 36. Rxe2 {[%clk 0:00:02]}  d4 {[%clk 0:00:07]} 37. Rc2 {[%clk 0:00:02]}  d3 {[%clk 0:00:07]} 38. Rch2 {[%clk 0:00:02]}  Rf5 {[%clk 0:00:07]} 39. Rd2 {[%clk 0:00:02]}  Qc4 {[%clk 0:00:06]} 40. Rdh2 {[%clk 0:00:01]}  Qd5 {[%clk 0:00:06]} 41. Rd1 {[%clk 0:00:01]}  Rb3 {[%clk 0:00:06]} 42. Ra2 {[%clk 0:00:01]}  Rf3 {[%clk 0:00:06]} 43. c4 {[%clk 0:00:02]}  Qd4+ {[%clk 0:00:06]} 44. Rb2 {[%clk 0:00:02]}  Rxa3+ {[%clk 0:00:07]} 45. Kb1 {[%clk 0:00:02]}  Rb3 {[%clk 0:00:07]} 46. Rxb3 {[%clk 0:00:01]}  axb3 {[%clk 0:00:08]} 47. Qa3 {[%clk 0:00:02]}  Qxc4 {[%clk 0:00:08]} 48. Rc1 {[%clk 0:00:02]}  Qe4 {[%clk 0:00:07]} 49. Rd1 {[%clk 0:00:01]}  d2+ {[%clk 0:00:08]} 50. Ka1 {[%clk 0:00:01]}  Qc2 {[%clk 0:00:09]} 51. Rb1 {[%clk 0:00:01]}  d1=Q {[%clk 0:00:09]} 52. Rxd1 {[%clk 0:00:01]}  Qxd1+ {[%clk 0:00:10]} 53. Kb2 {[%clk 0:00:02]}  Qc2+ {[%clk 0:00:10]} 54. Ka1 {[%clk 0:00:03]}  Rf1+ {[%clk 0:00:11]} 0-1


[Site "https://www.chess.com"]

[Event "Titled Tuesday Blitz April 4 Late 2023"]
[White "Chigaev, Maksim"]
[Black "Andreikin, Dmitry"]
[WhiteFideId "4108116"]
[BlackFideId "4158814"]
[WhiteElo "2547"]
[BlackElo "2736"]
[Result "0-1"]
[Round "09"]
[TimeControl "180+2"]
[Date "2023.04.04"]
[WhiteClock "0:00:01"]
[BlackClock "0:00:18"]

1. e4 {[%clk 0:03:00]}  c5 {[%clk 0:02:57]} 2. Nf3 {[%clk 0:03:01]}  e6 {[%clk 0:02:56]} 3. b3 {[%clk 0:03:00]}  b6 {[%clk 0:02:54]} 4. Bb2 {[%clk 0:03:00]}  Bb7 {[%clk 0:02:54]} 5. Qe2 {[%clk 0:03:01]}  Nc6 {[%clk 0:02:54]} 6. Nc3 {[%clk 0:03:01]}  a6 {[%clk 0:02:51]} 7. O-O-O {[%clk 0:03:01]}  b5 {[%clk 0:02:50]} 8. Kb1 {[%clk 0:02:57]}  Qa5 {[%clk 0:02:36]} 9. Nd5 {[%clk 0:02:25]}  Rc8 {[%clk 0:02:29]} 10. g4 {[%clk 0:02:01]}  Nge7 {[%clk 0:02:22]} 11. Nxe7 {[%clk 0:01:59]}  Bxe7 {[%clk 0:02:14]} 12. Qe3 {[%clk 0:01:39]}  c4 {[%clk 0:01:24]} 13. c3 {[%clk 0:01:32]}  O-O {[%clk 0:01:22]} 14. h4 {[%clk 0:01:16]}  d5 {[%clk 0:01:21]} 15. exd5 {[%clk 0:00:30]}  exd5 {[%clk 0:01:22]} 16. Nd4 {[%clk 0:00:23]}  Rfe8 {[%clk 0:01:15]} 17. Bg2 {[%clk 0:00:18]}  Bf6 {[%clk 0:00:36]} 18. Nxc6 {[%clk 0:00:18]}  Bxc6 {[%clk 0:00:36]} 19. Qc5 {[%clk 0:00:18]}  Be7 {[%clk 0:00:27]} 20. Qd4 {[%clk 0:00:14]}  Bf6 {[%clk 0:00:28]} 21. Qc5 {[%clk 0:00:14]}  Bd7 {[%clk 0:00:25]} 22. Qa7 {[%clk 0:00:03]}  cxb3 {[%clk 0:00:20]} 23. axb3 {[%clk 0:00:03]}  Bxg4 {[%clk 0:00:20]} 24. Bxd5 {[%clk 0:00:03]}  Bf5+ {[%clk 0:00:18]} 25. d3 {[%clk 0:00:03]}  Be6 {[%clk 0:00:18]} 26. Bxe6 {[%clk 0:00:03]}  Rxe6 {[%clk 0:00:19]} 27. b4 {[%clk 0:00:03]}  Qa4 {[%clk 0:00:19]} 28. d4 {[%clk 0:00:04]}  Re2 {[%clk 0:00:18]} 29. Rc1 {[%clk 0:00:01]} 0-1


[Site "https://www.chess.com"]

[Event "Titled Tuesday Blitz April 4 Late 2023"]
[White "Grigoriants, Sergey"]
[Black "Hakobyan, Aram"]
[WhiteFideId "4130804"]
[BlackFideId "13306677"]
[WhiteElo "2502"]
[BlackElo "2584"]
[Result "0-1"]
[Round "09"]
[TimeControl "180+2"]
[Date "2023.04.04"]
[WhiteClock "0:00:04"]
[BlackClock "0:00:38"]

1. d4 {[%clk 0:02:59]}  g6 {[%clk 0:02:59]} 2. e4 {[%clk 0:02:57]}  Bg7 {[%clk 0:02:59]} 3. Nf3 {[%clk 0:02:57]}  Nf6 {[%clk 0:02:58]} 4. Bd3 {[%clk 0:02:53]}  d5 {[%clk 0:02:58]} 5. e5 {[%clk 0:02:52]}  Ne4 {[%clk 0:02:58]} 6. Nbd2 {[%clk 0:02:47]}  Nxd2 {[%clk 0:02:58]} 7. Bxd2 {[%clk 0:02:45]}  c5 {[%clk 0:02:59]} 8. c3 {[%clk 0:02:33]}  Bg4 {[%clk 0:02:54]} 9. h3 {[%clk 0:01:59]}  Bxf3 {[%clk 0:02:53]} 10. Qxf3 {[%clk 0:02:00]}  Nc6 {[%clk 0:02:53]} 11. Bb5 {[%clk 0:01:43]}  Qb6 {[%clk 0:02:48]} 12. Qd3 {[%clk 0:01:11]}  O-O {[%clk 0:02:43]} 13. Bxc6 {[%clk 0:01:00]}  bxc6 {[%clk 0:02:41]} 14. b4 {[%clk 0:00:58]}  cxd4 {[%clk 0:02:37]} 15. cxd4 {[%clk 0:00:57]}  f6 {[%clk 0:02:37]} 16. exf6 {[%clk 0:00:44]}  Bxf6 {[%clk 0:02:38]} 17. Bc3 {[%clk 0:00:43]}  Qb5 {[%clk 0:01:35]} 18. Qxb5 {[%clk 0:00:35]}  cxb5 {[%clk 0:01:36]} 19. Ke2 {[%clk 0:00:33]}  Rfc8 {[%clk 0:01:29]} 20. Kd3 {[%clk 0:00:31]}  Rc4 {[%clk 0:01:23]} 21. Rhb1 {[%clk 0:00:29]}  Rac8 {[%clk 0:01:20]} 22. Rb3 {[%clk 0:00:29]}  e5 {[%clk 0:01:20]} 23. a4 {[%clk 0:00:13]}  e4+ {[%clk 0:00:59]} 24. Kd2 {[%clk 0:00:13]}  Bg5+ {[%clk 0:00:59]} 25. Kc2 {[%clk 0:00:13]}  Rf8 {[%clk 0:01:00]} 26. Rf1 {[%clk 0:00:07]}  bxa4 {[%clk 0:00:47]} 27. Ra3 {[%clk 0:00:07]}  Be3 {[%clk 0:00:47]} 28. Kb2 {[%clk 0:00:02]}  Bxd4 {[%clk 0:00:42]} 29. Bxd4 {[%clk 0:00:02]}  Rxb4+ {[%clk 0:00:42]} 30. Kc3 {[%clk 0:00:03]}  Rc4+ {[%clk 0:00:42]} 31. Kd2 {[%clk 0:00:04]}  Rxd4+ {[%clk 0:00:42]} 32. Ke3 {[%clk 0:00:05]}  Rb4 {[%clk 0:00:41]} 33. Rd1 {[%clk 0:00:05]}  Rb3+ {[%clk 0:00:39]} 34. Rxb3 {[%clk 0:00:04]}  axb3 {[%clk 0:00:40]} 35. Rxd5 {[%clk 0:00:05]}  Rb8 {[%clk 0:00:40]} 36. Rd1 {[%clk 0:00:04]}  a5 {[%clk 0:00:38]} 0-1


[Site "https://www.chess.com"]